bitfinex/quotes_SOLUSD_20240626
["timestamp","ask_amount","ask_price","bid_price","bid_amount"]
[1719366428599,7.2269,138.38,138.33,18.0719]
[1719366429975,27.2253,138.41,138.33,18.0719]
[1719366430185,7.2244,138.42,138.37,7.2269]
[1719366430395,7.2244,138.42,138.35,18.0694]
[1719366430396,7.225,138.41,138.36,22.3205]
[1719366430599,52.17662365,138.46,138.36,15.093]
[1719366430774,18.0588,138.44,138.35,6.6378]
[1719366430978,18.0621,138.42,138.35,6.6378]
[1719366431186,7.2273,138.37,138.33,15.093]
[1719366431388,7.2275,138.36,138.32,18.0731]
[1719366431579,18.0642,138.4,138.31,6.6505]
[1719366431785,7.2276,138.36,138.31,13.8802]
[1719366432098,7.228,138.35,138.31,6.6505]
[1719366432300,20.0,138.39,138.31,24.7251]
[1719366433307,7.227,138.37,138.32,7.2291]
[1719366433489,7.2252,138.41,138.36,7.227]
[1719366433690,7.2255,138.4,138.35,25.2975]
[1719366434093,23.72884262,138.44,138.33,0.17]
[1719366434293,20.0,138.43,138.32,18.0736]
[1719366434594,7.2279,138.36,138.31,14.0501]
[1719366434797,7.2271,138.37,138.32,7.3995]
[1719366435188,7.2279,138.36,138.31,31.9555]
[1719366435505,18.0641,138.4,138.31,6.6505]
[1719366435506,18.0672,138.38,138.31,6.6505]
[1719366436211,7.2285,138.34,138.31,6.6505]
[1719366436503,18.0693,138.36,138.28,6.4756]
[1719366436713,7.2311,138.3,138.26,15.574]
[1719366437090,7.2312,138.29,138.25,18.0822]
[1719366437405,0.17,138.35,138.27,18.0801]
[1719366437599,7.2301,138.32,138.27,25.3119]
[1719366437903,18.0715,138.34,138.24,24.56]
[1719366438116,20.34,138.33,138.24,31.7936]
[1719366439322,7.2313,138.29,138.24,31.7936]
[1719366439525,7.2306,138.3,138.25,7.2331]
[1719366440320,18.068,138.37,138.26,18.0814]
[1719366440510,18.068,138.37,138.28,18.0789]
[1719366440822,7.2295,138.33,138.28,18.0789]
[1719366441021,7.2302,138.31,138.26,7.2327]
[1719366441212,36.137,138.37,138.24,13.7089]
[1719366441414,43.19095745,138.37,138.24,13.7089]
[1719366441729,18.0733,138.33,138.25,7.2331]
[1719366441908,0.17,138.36,138.27,7.2319]
[1719366441909,7.23,138.32,138.27,7.2319]
[1719366442098,7.2302,138.31,138.26,25.3137]
[1719366442626,7.2297,138.32,138.27,7.2322]
[1719366442936,7.231,138.3,138.25,7.2327]
[1719366443219,7.2302,138.31,138.26,7.2326]
[1719366443826,18.0719,138.34,138.25,18.0827]
[1719366444129,20.17,138.33,138.25,18.0827]
[1719366444313,20.0,138.33,138.25,18.0827]
[1719366444628,7.2307,138.3,138.25,25.3154]
[1719366444831,25.12235745,138.37,138.27,15.5085]
[1719366445004,258.6,138.4,138.29,6.2906]
[1719366445202,7.2268,138.38,138.33,7.2289]
[1719366445513,7.2265,138.38,138.33,25.3013]
[1719366445714,7.2266,138.38,138.33,25.3013]
[1719366445929,258.6,138.4,138.33,18.0723]
[1719366446222,7.2282,138.35,138.3,25.3059]
[1719366446428,7.2275,138.36,138.31,7.3999]
[1719366446632,7.2271,138.37,138.32,7.2295]
[1719366446804,258.6,138.4,138.32,18.073]
[1719366447001,7.2264,138.38,138.33,7.3989]
[1719366447316,7.227,138.37,138.32,25.3024]
[1719366447719,258.6,138.4,138.32,25.3024]
[1719366447720,7.2266,138.38,138.33,7.2289]
[1719366447900,258.6,138.4,138.34,34.3653]
[1719366448107,258.6,138.4,138.36,7.2274]
[1719366448523,258.6,138.4,138.37,7.2269]
[1719366448726,258.6,138.4,138.37,13.7594]
[1719366449027,258.6,138.4,138.37,6.5325]
[1719366450410,40.4372,138.48,138.38,20.34]
[1719366450729,7.2229,138.45,138.4,7.2252]
[1719366451127,7.2233,138.44,138.39,7.2259]
[1719366451432,7.224,138.43,138.38,45.6316]
[1719366451722,7.224,138.43,138.38,25.4616]
[1719366451934,7.2251,138.41,138.37,6.5325]
[1719366452224,7.224,138.43,138.38,7.2264]
[1719366453603,18.0563,138.46,138.37,24.7696]
[1719366453803,20.0,138.45,138.38,0.17]
[1719366454024,7.2242,138.43,138.38,7.2264]
[1719366454203,18.059,138.44,138.37,6.5325]
[1719366454403,18.0621,138.42,138.34,16.2944]
[1719366454633,20.17,138.41,138.33,6.4743]
[1719366454806,7.2281,138.35,138.31,25.3047]
[1719366455009,7.2276,138.36,138.31,25.3047]
[1719366455210,18.2342,138.4,138.31,18.0746]
[1719366455409,20.0,138.39,138.31,18.0746]
[1719366455620,276.6605,138.43,138.34,18.0712]
[1719366455815,7.2261,138.39,138.34,25.2997]
[1719366456234,18.0626,138.41,138.31,18.0746]
[1719366456530,7.227,138.37,138.32,7.2295]
[1719366457317,18.0652,138.39,138.3,21.554]
[1719366457525,7.2295,138.33,138.28,25.3102]
[1719366457711,7.2286,138.34,138.29,7.231]
[1719366458322,7.2287,138.34,138.29,7.2311]
[1719366458516,7.2287,138.34,138.3,7.2306]
[1719366458729,7.228,138.35,138.3,7.2306]
[1719366459632,18.0679,138.37,138.28,18.0785]
[1719366459936,20.0,138.36,138.28,18.0785]
[1719366460337,7.2291,138.33,138.28,25.3098]
[1719366460714,7.2282,138.35,138.3,7.2301]
[1719366460913,7.2282,138.35,138.31,7.2301]
[1719366461113,18.0645,138.4,138.3,18.0763]
[1719366461307,7.2273,138.37,138.32,7.2295]
[1719366461923,7.2265,138.38,138.33,7.2286]
[1719366462127,20.0,138.39,138.29,18.4169]
[1719366462335,7.2281,138.35,138.3,27.2302]
[1719366463339,7.2277,138.36,138.31,7.23]
[1719366463537,7.2271,138.37,138.32,7.2294]
[1719366463739,18.0651,138.39,138.31,18.0749]
[1719366463740,7.226,138.39,138.34,7.2285]
[1719366464239,7.2266,138.38,138.33,25.3011]
[1719366467830,7.2261,138.39,138.34,7.2284]
[1719366468845,7.2275,138.36,138.3,38.0756]
[1719366469025,7.2271,138.37,138.32,7.2292]
[1719366469225,7.2271,138.37,138.32,18.0735]
[1719366469419,7.2271,138.37,138.33,7.229]
[1719366469717,34.0212,138.42,138.35,7.2279]
[1719366469718,15.9592,138.42,138.35,7.2279]
[1719366469921,15.9592,138.42,138.36,7.2274]
[1719366469922,27.2253,138.41,138.36,7.2274]
[1719366470319,258.6,138.43,138.36,18.0685]
[1719366470542,7.2249,138.41,138.36,25.2958]
[1719366470716,7.2245,138.42,138.37,7.2269]
[1719366471119,7.225,138.41,138.36,25.2959]
[1719366471445,7.2255,138.4,138.36,25.2959]
[1719366471642,7.2255,138.4,138.35,7.2278]
[1719366471850,276.66,138.43,138.34,6.391]
[1719366472149,7.2266,138.38,138.34,6.391]
[1719366472638,7.2272,138.37,138.34,6.391]
[1719366472852,7.2272,138.37,138.33,33.4694]
[1719366472853,7.2272,138.37,138.33,40.6984]
[1719366473020,7.2266,138.38,138.33,40.6984]
[1719366474645,7.2254,138.4,138.36,7.2274]
[1719366475247,7.2246,138.42,138.37,7.2268]
[1719366475440,258.6,138.43,138.37,7.2268]
[1719366475441,7.2249,138.41,138.37,7.2268]
[1719366475621,7.2249,138.41,138.36,7.2273]
[1719366476033,258.6,138.43,138.36,7.2273]
[1719366476226,7.2244,138.42,138.38,7.2263]
[1719366476438,7.2244,138.42,138.37,18.0669]
[1719366476638,265.824,138.43,138.37,18.0669]
[1719366476956,7.2244,138.42,138.38,7.2259]
[1719366477624,258.6,138.43,138.37,25.2937]
[1719366477625,7.2249,138.41,138.37,25.2937]
[1719366477855,258.6,138.43,138.38,7.226]
[1719366478027,7.2244,138.42,138.37,25.2936]
[1719366478754,258.6,138.43,138.34,18.0704]
[1719366479045,7.2255,138.4,138.35,7.2278]
[1719366479254,276.6599,138.43,138.35,7.2278]
[1719366479431,7.2254,138.4,138.35,7.2278]
[1719366479748,7.2254,138.4,138.36,7.2274]
[1719366480361,22.7067,138.45,138.37,7.2269]
[1719366480538,38.0586,138.44,138.33,15.3978]
[1719366480739,7.227,138.37,138.33,15.3978]
[1719366480936,7.2275,138.36,138.33,15.3978]
[1719366481133,7.2271,138.37,138.33,15.3978]
[1719366481857,7.2265,138.38,138.33,22.6267]
[1719366482234,7.226,138.39,138.34,7.2285]
[1719366482631,18.0625,138.41,138.33,22.6266]
[1719366482838,7.2264,138.38,138.33,22.6265]
[1719366483045,7.2261,138.39,138.34,7.2284]
[1719366483536,7.2255,138.4,138.34,18.0709]
[1719366483857,7.2251,138.41,138.35,0.17]
[1719366484054,276.6552,138.47,138.38,6.4192]
[1719366484258,20.0,138.46,138.38,24.4852]
[1719366484448,7.2245,138.42,138.38,24.4852]
[1719366485248,20.0,138.46,138.38,24.4852]
[1719366485249,7.224,138.43,138.38,31.7114]
[1719366486538,7.2244,138.42,138.38,24.4852]
[1719366486735,56.1134,138.46,138.35,24.3736]
[1719366486964,7.2254,138.4,138.35,31.6011]
[1719366487162,18.0601,138.43,138.35,24.3736]
[1719366487369,74.1701,138.46,138.35,24.3736]
[1719366487768,7.2247,138.42,138.37,7.2268]
[1719366488269,74.1701,138.46,138.35,6.304]
[1719366488270,18.0587,138.44,138.35,6.304]
[1719366488448,7.2261,138.39,138.35,6.304]
[1719366489866,18.0587,138.44,138.35,6.304]
[1719366490048,7.2239,138.43,138.38,7.226]
[1719366490366,7.224,138.43,138.36,0.34]
[1719366490560,20.0,138.46,138.36,0.34]
[1719366490561,7.2235,138.44,138.39,7.2259]
[1719366490759,38.0559,138.46,138.37,18.0667]
[1719366490971,38.0559,138.46,138.37,25.2935]
[1719366491283,7.2256,138.4,138.35,13.5319]
[1719366491485,7.2254,138.4,138.36,7.2273]
[1719366491650,7.2262,138.39,138.35,6.304]
[1719366492068,7.2262,138.39,138.35,13.5319]
[1719366492274,7.2256,138.4,138.35,13.5319]
[1719366492576,7.2239,138.43,138.39,7.2258]
[1719366492748,7.2234,138.44,138.4,7.2253]
[1719366492949,7.2228,138.45,138.41,7.2244]
[1719366493144,7.2228,138.45,138.4,25.288]
[1719366493349,7.2233,138.44,138.4,25.288]
[1719366493755,7.2233,138.44,138.4,18.0628]
[1719366494069,7.2233,138.44,138.39,7.2257]
[1719366494454,7.224,138.43,138.38,7.2262]
[1719366495859,7.2235,138.44,138.39,7.2257]
[1719366496063,7.2238,138.43,138.39,7.2257]
[1719366496259,20.0,138.46,138.35,6.304]
[1719366496461,18.0588,138.44,138.37,7.2265]
[1719366496780,20.0,138.46,138.39,7.2258]
[1719366496976,7.2249,138.41,138.37,7.2266]
[1719366497274,18.3972,138.45,138.37,7.2266]
[1719366497449,7.2252,138.41,138.36,7.2274]
[1719366497849,7.2245,138.42,138.37,7.2269]
[1719366498478,7.2239,138.43,138.37,18.0671]
[1719366498676,7.2239,138.43,138.38,7.3961]
[1719366498878,7.2245,138.42,138.37,25.2939]
[1719366499176,7.2238,138.44,138.38,0.17]
[1719366499586,7.2238,138.44,138.39,7.2258]
[1719366500782,7.2238,138.43,138.39,7.2258]
[1719366500977,7.2238,138.43,138.38,7.3962]
[1719366502550,7.2246,138.42,138.38,0.17]
[1719366502754,7.225,138.41,138.37,18.0671]
[1719366502956,7.225,138.41,138.37,25.294]
[1719366503957,7.225,138.41,138.37,18.0671]
[1719366505492,36.1148,138.45,138.35,6.304]
[1719366505685,7.2268,138.38,138.34,18.0705]
[1719366506581,7.2268,138.38,138.34,25.2989]
[1719366507587,7.2261,138.39,138.34,25.2989]
[1719366507887,7.2265,138.38,138.34,18.0705]
[1719366508399,34.4085,138.42,138.29,16.493]
[1719366508400,20.0,138.37,138.29,16.493]
[1719366508755,7.2292,138.33,138.29,16.493]
[1719366510290,7.2296,138.32,138.28,31.579]
[1719366510463,7.2296,138.32,138.27,7.2321]
[1719366510774,7.2296,138.32,138.28,7.2316]
[1719366511883,7.2292,138.33,138.28,7.2316]
[1719366513899,7.2296,138.32,138.28,7.2316]
[1719366514070,7.2296,138.32,138.27,25.3122]
[1719366514898,7.2286,138.34,138.29,7.2309]
[1719366515093,20.0,138.37,138.32,7.2294]
[1719366515094,7.2271,138.37,138.32,7.2294]
[1719366515502,7.2277,138.36,138.31,18.0747]
[1719366515795,7.2277,138.36,138.31,25.3045]
[1719366515994,7.228,138.35,138.31,25.3045]
[1719366516698,7.2276,138.36,138.31,25.3045]
[1719366516891,7.2271,138.37,138.32,7.2294]
[1719366517271,7.2271,138.37,138.32,23.0612]
[1719366517797,7.2271,138.37,138.33,7.229]
[1719366517988,15.2572,138.4,138.34,7.2285]
[1719366518182,7.2253,138.41,138.33,0.17]
[1719366518384,7.2257,138.4,138.35,25.297]
[1719366519411,7.225,138.41,138.36,7.2273]
[1719366519896,7.2254,138.4,138.35,25.2969]
[1719366520194,7.2259,138.39,138.35,25.2969]
[1719366520504,7.2259,138.39,138.35,25.297]
[1719366520799,18.0599,138.43,138.32,15.8318]
[1719366521001,20.34,138.42,138.32,15.8318]
[1719366521175,7.2281,138.35,138.32,15.8318]
[1719366521376,7.2276,138.36,138.32,15.8318]
[1719366521707,7.2276,138.36,138.3,6.4167]
[1719366521708,18.0678,138.37,138.3,6.4167]
[1719366521997,15.2703,138.37,138.29,15.1841]
[1719366522501,7.2277,138.36,138.31,7.2299]
[1719366522889,7.227,138.37,138.32,7.2295]
[1719366523103,7.2266,138.38,138.33,7.2288]
[1719366523496,7.226,138.39,138.34,7.2283]
[1719366523682,38.0612,138.42,138.34,25.2993]
[1719366523874,38.0612,138.42,138.34,18.0709]
[1719366524197,7.2268,138.38,138.34,18.0709]
[1719366524773,18.0638,138.4,138.33,6.1946]
[1719366524973,18.0638,138.4,138.31,18.0744]
[1719366525191,7.2273,138.37,138.32,7.2295]
[1719366525593,7.2276,138.36,138.31,25.3043]
[1719366526175,7.2276,138.36,138.32,7.2294]
[1719366526384,7.2266,138.38,138.33,7.2288]
[1719366527081,20.0,138.42,138.35,7.2279]
[1719366527478,16.6359,138.44,138.35,7.2279]
[1719366527479,16.6359,138.44,138.35,18.0696]
[1719366527677,16.6359,138.44,138.37,7.2269]
[1719366527878,7.2245,138.42,138.38,7.2263]
[1719366528277,7.2245,138.42,138.37,25.2938]
[1719366529378,265.8231,138.45,138.4,7.2253]
[1719366529602,7.2233,138.44,138.39,25.2903]
[1719366530007,7.2238,138.43,138.39,25.2903]
[1719366530191,7.2235,138.44,138.39,25.2903]
[1719366530392,7.2229,138.45,138.4,7.2252]
[1719366531602,7.2234,138.44,138.4,7.2252]
[1719366532695,7.2229,138.45,138.4,7.2252]
[1719366534886,25.10665745,138.49,138.41,18.0615]
[1719366535206,7.2222,138.47,138.42,7.2239]
[1719366535712,7.2222,138.47,138.41,18.0615]
[1719366535914,7.2222,138.47,138.42,7.2242]
[1719366536213,7.2223,138.46,138.42,7.2242]
[1719366537316,7.2229,138.45,138.4,7.2251]
[1719366537489,7.2225,138.46,138.41,7.2249]
[1719366537689,7.2218,138.47,138.42,7.2239]
[1719366538408,7.2223,138.46,138.42,7.2239]
[1719366538612,7.2223,138.46,138.41,7.2247]
[1719366539213,7.2228,138.45,138.41,7.2247]
[1719366539817,7.2224,138.46,138.42,7.2243]
[1719366540011,7.2224,138.46,138.41,7.2247]
[1719366540209,7.2224,138.46,138.42,7.2242]
[1719366541021,7.2224,138.46,138.41,7.2247]
[1719366541704,7.2224,138.46,138.42,7.2242]
[1719366542217,7.2218,138.47,138.42,7.2242]
[1719366542415,7.2213,138.48,138.43,7.2238]
[1719366543118,15.0219,138.51,138.44,18.2279]
[1719366543316,6.0494,138.52,138.44,18.2279]
[1719366543818,15.8815,138.54,138.44,18.2279]
[1719366544113,20.0,138.53,138.42,6.2432]
[1719366544319,20.0,138.53,138.43,20.34]
[1719366544515,7.2213,138.48,138.44,7.2229]
[1719366544898,20.0,138.53,138.45,7.2226]
[1719366545115,7.2203,138.5,138.45,7.2226]
[1719366545592,7.2197,138.51,138.46,7.2221]
[1719366545996,20.0,138.53,138.45,25.2791]
[1719366546216,7.2203,138.5,138.45,25.2791]
[1719366546724,7.2198,138.51,138.46,7.2222]
[1719366546931,7.2198,138.51,138.47,7.2217]
[1719366547102,7.2191,138.53,138.48,7.2212]
[1719366547296,7.2185,138.54,138.5,7.2202]
[1719366547516,7.2183,138.54,138.5,7.2202]
[1719366547837,7.2183,138.54,138.49,25.2718]
[1719366550196,22.2903,138.58,138.48,6.294]
[1719366550197,18.045,138.55,138.48,6.294]
[1719366550397,7.2198,138.51,138.47,23.771]
[1719366551528,7.2198,138.51,138.47,7.2216]
[1719366551712,18.0479,138.52,138.45,6.0798]
[1719366551914,7.2209,138.49,138.45,6.0798]
[1719366552125,7.2203,138.5,138.45,24.1363]
[1719366552331,7.2202,138.5,138.45,31.3586]
[1719366552642,7.2198,138.51,138.46,7.2222]
[1719366553221,7.2205,138.5,138.45,31.3589]
[1719366553428,7.2205,138.5,138.45,24.1363]
[1719366553826,7.2205,138.5,138.45,31.3589]
[1719366554016,7.2207,138.49,138.45,31.3589]
[1719366554419,7.2203,138.5,138.45,31.3589]
[1719366555136,7.2199,138.51,138.46,7.222]
[1719366555307,7.2193,138.52,138.47,18.0542]
[1719366555517,29.78255501,138.58,138.45,6.0798]
[1719366555717,18.0458,138.54,138.46,25.2776]
[1719366555942,7.2198,138.51,138.47,7.2217]
[1719366556934,20.0,138.53,138.45,13.3024]
[1719366557352,7.2203,138.5,138.46,7.2222]
[1719366557519,7.2198,138.51,138.45,24.1365]
[1719366557721,7.2202,138.5,138.46,7.2219]
[1719366558143,7.2202,138.5,138.45,31.3592]
[1719366558329,18.0484,138.52,138.45,6.0798]
[1719366558548,7.2213,138.48,138.44,16.0555]
[1719366559221,18.0506,138.5,138.42,25.2839]
[1719366559426,7.2219,138.47,138.43,7.2238]
[1719366559949,7.2219,138.47,138.42,25.2839]
[1719366560849,20.0,138.49,138.42,25.2839]
[1719366561026,7.2213,138.48,138.41,6.2978]
[1719366561426,7.2213,138.48,138.43,25.2828]
[1719366561655,7.222,138.47,138.43,18.0592]
[1719366562860,7.222,138.47,138.43,25.283]
[1719366563155,20.0,138.49,138.43,18.0592]
[1719366563361,7.2205,138.5,138.45,18.0568]
[1719366563538,23.71554262,138.54,138.46,42.8359]
[1719366563539,7.2184,138.54,138.46,42.8359]
[1719366563859,40.0188,138.58,138.49,18.051]
[1719366564070,18.0431,138.56,138.47,7.2217]
[1719366564359,18.0431,138.56,138.46,60.5514]
[1719366564669,7.219,138.53,138.49,7.2207]
[1719366564963,7.219,138.53,138.48,7.2211]
[1719366565331,21.9782,138.58,138.48,18.0527]
[1719366565551,7.2182,138.54,138.49,7.5605]
[1719366566164,7.2191,138.53,138.48,25.2739]
[1719366566663,7.218,138.55,138.49,7.3907]
[1719366567467,18.0419,138.57,138.48,25.2738]
[1719366567660,20.0,138.56,138.48,25.2738]
[1719366568564,7.2192,138.52,138.48,25.2738]
[1719366569068,7.2197,138.51,138.46,22.4959]
[1719366569370,7.2202,138.5,138.45,18.056]
[1719366570032,7.2202,138.5,138.45,25.2784]
[1719366570666,7.2202,138.5,138.46,7.2222]
[1719366571072,21.9782,138.58,138.51,18.0479]
[1719366571238,21.9782,138.58,138.53,7.2185]
[1719366571436,265.8148,138.61,138.53,18.0453]
[1719366571664,265.8148,138.61,138.54,7.2181]
[1719366571665,7.215,138.6,138.54,7.2181]
[1719366571848,7.2162,138.58,138.53,25.2638]
[1719366572051,258.6,138.61,138.53,18.0453]
[1719366572361,7.215,138.6,138.54,7.388]
[1719366572534,258.6,138.61,138.55,7.2175]
[1719366572737,7.2137,138.63,138.55,18.0428]
[1719366572939,15.9978,138.65,138.58,7.216]
[1719366573136,7.2144,138.62,138.56,7.2166]
[1719366574243,7.2133,138.64,138.55,18.0428]
[1719366574448,15.9978,138.65,138.56,0.34]
[1719366574754,20.0,138.64,138.56,0.17]
[1719366574951,20.0,138.64,138.55,39.128]
[1719366575863,7.2147,138.61,138.55,46.3452]
[1719366576243,7.2152,138.6,138.55,39.128]
[1719366576772,20.0,138.64,138.56,7.2169]
[1719366576954,7.214,138.62,138.56,7.2169]
[1719366577144,7.2135,138.63,138.57,7.2163]
[1719366577344,7.2139,138.62,138.57,7.2163]
[1719366577651,7.2139,138.62,138.56,7.217]
[1719366579165,7.214,138.62,138.56,7.217]
[1719366579368,7.2146,138.61,138.56,7.217]
[1719366582158,20.0,138.64,138.56,18.0415]
[1719366582480,38.0334,138.64,138.52,18.0471]
[1719366582772,38.0334,138.64,138.53,20.17]
[1719366583479,38.0334,138.64,138.54,18.0446]
[1719366583680,0.17,138.63,138.54,18.0446]
[1719366584486,7.2151,138.6,138.55,7.2175]
[1719366585047,7.2157,138.59,138.54,18.0446]
[1719366585356,18.0355,138.62,138.53,7.2185]
[1719366585547,0.17,138.63,138.55,7.2175]
[1719366585749,0.34,138.63,138.55,7.2175]
[1719366587282,7.2145,138.61,138.56,7.217]
[1719366587456,7.2137,138.63,138.57,7.2162]
[1719366587651,7.2154,138.6,138.55,25.26]
[1719366589481,7.2145,138.61,138.56,7.2166]
[1719366589851,7.2145,138.61,138.55,25.2604]
[1719366590565,7.2151,138.6,138.55,25.2604]
[1719366591257,7.2155,138.59,138.55,18.043]
[1719366591574,20.0,138.64,138.55,18.043]
[1719366591770,0.34,138.63,138.55,18.043]
[1719366592280,18.3742,138.63,138.52,38.2171]
[1719366592478,20.0,138.62,138.52,38.2171]
[1719366593272,7.2156,138.59,138.54,7.2177]
[1719366593458,20.0,138.62,138.55,7.2173]
[1719366593967,7.2153,138.6,138.55,7.2173]
[1719366594658,20.0,138.62,138.54,18.0445]
[1719366594858,7.2151,138.6,138.55,7.2175]
[1719366595380,20.0,138.62,138.54,18.0445]
[1719366595672,15.9978,138.65,138.55,0.34]
[1719366595673,20.0,138.64,138.55,0.34]
[1719366596081,7.2154,138.6,138.55,7.2174]
[1719366596971,7.2156,138.59,138.54,25.2624]
[1719366597154,18.0353,138.62,138.51,39.4893]
[1719366597356,20.0,138.61,138.52,0.34]
[1719366597764,7.2165,138.58,138.53,7.2183]
[1719366597980,20.0,138.61,138.52,0.17]
[1719366598281,7.2179,138.55,138.51,21.4409]
[1719366598578,18.0381,138.6,138.51,21.4409]
[1719366598876,20.0,138.59,138.51,21.4409]
[1719366599392,20.0,138.59,138.52,0.34]
[1719366600068,20.0,138.59,138.52,18.3872]
[1719366600381,7.215,138.6,138.54,18.0446]
[1719366600586,7.215,138.6,138.55,7.2172]
[1719366600879,7.216,138.59,138.54,25.2626]
[1719366601461,20.0,138.62,138.54,18.0446]
[1719366601669,20.0,138.63,138.56,7.2169]
[1719366602166,7.215,138.6,138.55,7.2174]
[1719366602893,7.216,138.58,138.54,18.0446]
[1719366603257,7.2156,138.59,138.54,25.2625]
[1719366603681,20.0,138.63,138.54,18.0446]
[1719366603865,7.215,138.6,138.56,7.217]
[1719366604081,18.0344,138.63,138.54,18.0446]
[1719366604369,7.2151,138.6,138.55,7.2175]
[1719366605273,20.0,138.62,138.51,39.4892]
[1719366605578,7.216,138.58,138.53,7.2185]
[1719366606082,7.2167,138.57,138.52,7.219]
[1719366606282,0.34,138.61,138.51,39.4892]
[1719366606485,7.2172,138.56,138.51,46.7087]
[1719366606693,7.2167,138.57,138.52,7.219]
[1719366606984,7.2167,138.57,138.51,39.4892]
[1719366607161,0.34,138.61,138.54,7.2181]
[1719366607365,38.0354,138.62,138.55,7.2175]
[1719366607887,7.2155,138.59,138.54,7.2179]
[1719366608388,38.0354,138.62,138.53,18.0457]
[1719366608693,0.34,138.61,138.53,18.0457]
[1719366608866,36.4128,138.61,138.51,21.4409]
[1719366609186,7.2177,138.55,138.51,28.6604]
[1719366609495,7.2171,138.56,138.51,28.6604]
[1719366610563,18.0405,138.58,138.49,7.2206]
[1719366610871,18.0438,138.56,138.48,21.8075]
[1719366611990,7.2197,138.51,138.48,21.8075]
[1719366612289,7.2191,138.53,138.48,29.0284]
[1719366613389,7.2183,138.54,138.49,7.2206]
[1719366613979,7.2186,138.53,138.49,7.2206]
[1719366614385,7.2181,138.54,138.5,7.2201]
[1719366614582,20.34,138.57,138.5,7.2201]
[1719366614887,274.4007,138.59,138.5,18.0498]
[1719366615100,274.4007,138.59,138.52,7.219]
[1719366616387,7.217,138.56,138.51,7.2195]
[1719366618390,7.2177,138.55,138.51,7.2195]
[1719366618591,38.0406,138.58,138.48,21.8075]
[1719366618893,7.2187,138.53,138.48,21.8075]
[1719366620170,7.2187,138.53,138.48,29.0287]
[1719366620366,18.0431,138.56,138.48,21.8075]
[1719366620590,20.0,138.55,138.48,21.8075]
[1719366620766,7.2202,138.5,138.48,21.8075]
[1719366620966,0.34,138.57,138.48,21.8075]
[1719366620967,7.2195,138.52,138.48,21.8075]
[1719366621696,7.2188,138.53,138.48,29.0286]
[1719366622387,7.2172,138.56,138.49,0.17]
[1719366622571,7.2179,138.55,138.5,25.2701]
[1719366622770,7.2172,138.56,138.52,7.219]
[1719366622980,7.2172,138.56,138.51,7.2195]
[1719366623666,20.0,138.58,138.52,18.0476]
[1719366623667,7.2167,138.57,138.52,18.0476]
[1719366624206,7.2167,138.57,138.52,25.2663]
[1719366624902,258.6,138.59,138.53,15.2514]
[1719366625101,258.6,138.59,138.55,7.2175]
[1719366625278,258.6,138.59,138.54,31.5244]
[1719366625279,265.8155,138.59,138.54,31.5244]
[1719366625474,7.2167,138.57,138.53,15.2514]
[1719366626400,7.2161,138.58,138.53,33.2976]
[1719366626702,7.216,138.59,138.54,7.218]
[1719366627205,7.2161,138.58,138.54,7.218]
[1719366627416,7.2166,138.57,138.53,40.5162]